bitfinex/quotes_BTCUSD_20250607
["timestamp","ask_amount","ask_price","bid_price","bid_amount"]
[1749302080400,0.06113083,105580.0,105570.0,1.98971911]
[1749302080777,0.06113083,105580.0,105570.0,2.00491911]
[1749302080983,0.06113083,105580.0,105570.0,1.92942943]
[1749302081381,0.06113083,105580.0,105570.0,2.0048991]
[1749302081837,0.06113083,105580.0,105570.0,1.92942943]
[1749302083396,0.06113083,105580.0,105570.0,1.89792943]
[1749302083600,0.06113083,105580.0,105570.0,1.88940943]
[1749302083806,0.06113083,105580.0,105570.0,1.9743386]
[1749302093914,0.06113083,105580.0,105570.0,1.9700586]
[1749302094857,0.09273083,105580.0,105570.0,1.431552]
[1749302095059,0.09273083,105580.0,105570.0,1.9698986]
[1749302096124,0.09273083,105580.0,105570.0,1.427832]
[1749302096337,0.09273083,105580.0,105570.0,1.9663386]
[1749302106173,0.09273083,105580.0,105570.0,1.5514986]
[1749302106372,0.09273083,105580.0,105570.0,1.9645386]
[1749302107302,0.09273083,105580.0,105570.0,1.426032]
[1749302107502,0.09273083,105580.0,105570.0,1.9645386]
[1749302109858,0.09273083,105580.0,105570.0,1.9602586]
[1749302117480,0.09273083,105580.0,105570.0,1.421752]
[1749302117683,0.09273083,105580.0,105570.0,1.9602586]
[1749302119127,0.06113083,105580.0,105570.0,1.91540145]
[1749302119574,0.06113083,105580.0,105570.0,1.90030145]
[1749302119799,0.06113083,105580.0,105570.0,1.88480145]
[1749302120001,0.09183083,105580.0,105570.0,1.42073736]
[1749302120139,0.09183083,105580.0,105570.0,1.01305736]
[1749302120344,0.09083083,105580.0,105570.0,1.95952396]
[1749302120776,0.09083083,105580.0,105570.0,1.96052396]
[1749302121001,0.09083083,105580.0,105570.0,1.55256396]
[1749302121334,0.09083083,105580.0,105570.0,1.96140396]
[1749302124229,0.09083083,105580.0,105570.0,1.42245736]
[1749302125105,0.09083083,105580.0,105570.0,1.42145736]
[1749302125388,0.09183083,105580.0,105570.0,1.95996396]
[1749302125649,0.09183083,105580.0,105570.0,1.95896396]
[1749302127053,0.09283083,105580.0,105570.0,1.95896396]
[1749302130059,0.09283083,105580.0,105570.0,1.42045736]
[1749302133827,0.09283083,105580.0,105570.0,1.41977736]
[1749302149905,0.09283083,105580.0,105570.0,1.41071022]
[1749302150105,0.09283083,105580.0,105570.0,1.41032728]
[1749302150534,0.09283083,105580.0,105570.0,1.41979957]
[1749302158474,0.09283083,105580.0,105570.0,1.95830617]
[1749302160520,0.09283083,105580.0,105570.0,1.41979957]
[1749302166985,0.09283083,105580.0,105570.0,1.41335957]
[1749302175300,0.06213083,105580.0,105570.0,1.95186617]
[1749302179916,0.06213083,105580.0,105570.0,2.00191058]
[1749302181412,0.06213083,105580.0,105570.0,2.60495803]
[1749302181673,0.00477003,105580.0,105570.0,2.51089111]
[1749302182189,0.00477003,105580.0,105570.0,2.63966336]
[1749302182441,0.00377003,105580.0,105570.0,2.51089111]
[1749302182713,0.00277003,105580.0,105570.0,2.69066336]
[1749302182977,0.503,105600.0,105590.0,0.21782256]
[1749302183264,0.50304791,105600.0,105590.0,1.37557857]
[1749302183777,0.50304791,105600.0,105590.0,1.28132864]
[1749302184300,0.50304791,105600.0,105590.0,1.30978471]
[1749302184564,0.50304791,105600.0,105590.0,1.38509391]
[1749302184990,0.50404791,105600.0,105590.0,1.38509391]
[1749302185853,0.50404791,105600.0,105590.0,1.41354291]
[1749302186267,0.50504791,105600.0,105590.0,1.41354291]
[1749302187384,0.50504791,105600.0,105590.0,1.41348055]
[1749302194049,0.50504791,105600.0,105590.0,2.016528]
[1749302194271,0.50504791,105600.0,105590.0,2.41058328]
[1749302194532,0.50504791,105600.0,105590.0,2.37553109]
[1749302194744,0.50504791,105600.0,105590.0,2.37421109]
[1749302194946,0.50404791,105600.0,105590.0,2.37421109]
[1749302195148,0.50404791,105600.0,105590.0,2.37413109]
[1749302195371,0.50304791,105600.0,105590.0,2.37513109]
[1749302195575,0.50304791,105600.0,105590.0,2.37613109]
[1749302195779,0.50304791,105600.0,105590.0,3.07613109]
[1749302196013,0.50304791,105600.0,105590.0,2.68033109]
[1749302196232,0.50304791,105600.0,105590.0,2.98276116]
[1749302196437,0.50304791,105600.0,105590.0,2.58808116]
[1749302196645,0.50304791,105600.0,105590.0,2.98276116]
[1749302196850,0.50304791,105600.0,105590.0,2.35683707]
[1749302197267,0.50304791,105600.0,105590.0,2.35883707]
[1749302197443,0.50304791,105600.0,105590.0,1.96419707]
[1749302197650,0.50304791,105600.0,105590.0,2.35871707]
[1749302199433,0.50304791,105600.0,105590.0,2.35851707]
[1749302199857,0.50304791,105600.0,105590.0,3.05851707]
[1749302201006,0.50308791,105600.0,105590.0,3.05851707]
[1749302201636,0.50308791,105600.0,105590.0,2.98340116]
[1749302201857,0.50308791,105600.0,105590.0,3.07765109]
[1749302202065,0.50308791,105600.0,105590.0,2.98340116]
[1749302204777,0.04052772,105610.0,105600.0,2.26856257]
[1749302204989,0.04052772,105610.0,105600.0,2.44012575]
[1749302205203,0.03105543,105610.0,105600.0,2.44012575]
[1749302205405,0.02158314,105610.0,105600.0,2.46856875]
[1749302205872,0.01211085,105610.0,105600.0,2.39340505]
[1749302206297,0.01211085,105610.0,105600.0,3.09340505]
[1749302206298,0.00263856,105610.0,105600.0,3.09340505]
[1749302206516,0.00263856,105610.0,105600.0,3.09440505]
[1749302206756,4e-05,105620.0,105610.0,0.26302217]
[1749302206990,4e-05,105620.0,105610.0,2.18010564]
[1749302206991,8.791e-05,105620.0,105610.0,2.18010564]
[1749302207205,4e-05,105630.0,105620.0,0.57336069]
[1749302207446,4e-05,105630.0,105620.0,1.78752009]
[1749302208192,4e-05,105630.0,105620.0,1.81596209]
[1749302208435,4e-05,105630.0,105620.0,1.81696209]
[1749302208885,0.03064,105630.0,105620.0,1.81696209]
[1749302209107,0.0152,105630.0,105620.0,1.81696209]
[1749302209369,0.0152,105630.0,105620.0,1.27783317]
[1749302209593,0.003,105640.0,105630.0,0.21774007]
[1749302209816,0.00347914,105640.0,105630.0,0.70589955]
[1749302210276,0.00347914,105640.0,105630.0,0.73434055]
[1749302210932,0.00647914,105640.0,105630.0,0.73434055]
[1749302211902,0.02187914,105640.0,105630.0,0.34258055]
[1749302212111,0.02187914,105640.0,105630.0,0.73402055]
[1749302212316,0.03711914,105640.0,105630.0,0.73402055]
[1749302213238,0.03711914,105640.0,105630.0,0.73406055]
[1749302214782,0.03711914,105640.0,105630.0,0.79040727]
[1749302214986,0.03711914,105640.0,105630.0,0.79993705]
[1749302217661,0.03706897,105640.0,105630.0,0.79993705]
[1749302217888,0.03706897,105640.0,105630.0,0.79449705]
[1749302218109,0.03706897,105640.0,105630.0,0.79047067]
[1749302218978,0.03706897,105640.0,105630.0,0.79993705]
[1749302219730,0.03706897,105640.0,105630.0,0.40845705]
[1749302219941,0.03706897,105640.0,105630.0,0.79925705]
[1749302221492,0.04653427,105640.0,105630.0,0.40845705]
[1749302221705,0.03706897,105640.0,105630.0,0.74271033]
[1749302222165,0.03706897,105640.0,105630.0,0.73318055]
[1749302222378,0.03706897,105640.0,105630.0,0.78952727]
[1749302222795,0.03706897,105640.0,105630.0,0.79885092]
[1749302227125,0.03706897,105640.0,105630.0,1.07165092]
[1749302228481,0.03706897,105640.0,105630.0,0.68105092]
[1749302228690,0.03706897,105640.0,105630.0,1.07141092]
[1749302232609,0.03706897,105640.0,105630.0,1.0150642]
[1749302232821,0.03706897,105640.0,105630.0,1.07158213]
[1749302234579,0.03706897,105640.0,105630.0,1.0150642]
[1749302236654,0.03706897,105640.0,105630.0,1.16586371]
[1749302236655,0.00646897,105640.0,105630.0,1.16586371]
[1749302236869,0.00646897,105640.0,105630.0,1.0902279]
[1749302237329,0.03896897,105640.0,105630.0,1.62819528]
[1749302241235,0.03896897,105640.0,105630.0,1.0902279]
[1749302241445,0.03896897,105640.0,105630.0,0.9647042]
[1749302241655,0.03896897,105640.0,105630.0,1.42077682]
[1749302241865,0.03896897,105640.0,105630.0,1.08073682]
[1749302242496,0.03896897,105640.0,105630.0,1.07137317]
[1749302242902,0.03896897,105640.0,105630.0,1.07141317]
[1749302243111,0.03896897,105640.0,105630.0,0.67193317]
[1749302243324,0.03896897,105640.0,105630.0,1.07149317]
[1749302246915,0.03896897,105640.0,105630.0,0.67193317]
[1749302247126,0.07563755,105640.0,105630.0,1.01438055]
[1749302247747,0.07563338,105640.0,105630.0,1.01438055]
[1749302247951,0.05789993,105640.0,105630.0,1.01438055]
[1749302248160,0.07563338,105640.0,105630.0,1.01438055]
[1749302248998,0.28388719,105640.0,105630.0,0.60591417]
[1749302249281,0.23040696,105630.0,105620.0,0.43487807]
[1749302249482,0.06826905,105630.0,105620.0,0.96786789]
[1749302249685,0.06000046,105630.0,105620.0,0.96790798]
[1749302249895,0.0777364,105630.0,105620.0,0.97737525]
[1749302250109,0.06826913,105630.0,105620.0,0.97733525]
[1749302250517,0.07773595,105630.0,105620.0,0.57861525]
[1749302250726,0.27654309,105630.0,105620.0,0.95840062]
[1749302251068,0.27654309,105630.0,105620.0,0.96786807]
[1749302251258,0.28054309,105630.0,105620.0,0.56914807]
[1749302251514,0.28054309,105630.0,105620.0,0.97725543]
[1749302251984,0.08473572,105630.0,105620.0,0.9772548]
[1749302252264,0.08473572,105630.0,105620.0,0.5786148]
[1749302252536,0.08473572,105630.0,105620.0,0.9770948]
[1749302253371,0.08471293,105630.0,105620.0,0.9769348]
[1749302253791,0.08471064,105630.0,105620.0,0.5786148]
[1749302253793,0.08471064,105630.0,105620.0,0.9768948]
[1749302254038,0.08469911,105630.0,105620.0,0.5786148]
[1749302254300,0.08469911,105630.0,105620.0,0.9768148]
[1749302254818,0.06700001,105630.0,105620.0,0.9768148]
[1749302255060,0.09416611,105630.0,105620.0,0.5786148]
[1749302255323,0.08469911,105630.0,105620.0,0.9766948]
[1749302255583,0.06700001,105630.0,105620.0,0.9766948]
[1749302256083,0.06700001,105630.0,105620.0,0.9765748]
[1749302256836,0.06704001,105630.0,105620.0,0.9765748]
[1749302257540,0.06703939,105630.0,105620.0,0.3330948]
[1749302258353,0.0670393,105630.0,105620.0,0.3330948]
[1749302258567,0.0481062,105630.0,105620.0,0.3330948]
[1749302258773,0.05757266,105630.0,105620.0,0.3330948]
[1749302259522,0.05757266,105630.0,105620.0,0.6346148]
[1749302259738,0.0481062,105630.0,105620.0,0.7308548]
[1749302259976,0.05757258,105630.0,105620.0,0.7308548]
[1749302260787,0.0481062,105630.0,105620.0,0.7308548]
[1749302260967,0.03864,105630.0,105620.0,0.7308548]
[1749302266479,0.0481062,105630.0,105620.0,0.7308548]
[1749302266835,0.03864,105630.0,105620.0,0.7308548]
[1749302267045,0.0481062,105630.0,105620.0,0.7308548]
[1749302267245,0.05757249,105630.0,105620.0,0.7308548]
[1749302267641,0.06703895,105630.0,105620.0,0.7308548]
[1749302267844,0.05757249,105630.0,105620.0,0.7308548]
[1749302268000,0.06703895,105630.0,105620.0,0.7308548]
[1749302268201,0.06703887,105630.0,105620.0,0.7308548]
[1749302270795,0.05757266,105630.0,105620.0,0.7308548]
[1749302270960,0.0481062,105630.0,105620.0,0.7308548]
[1749302271120,0.05757266,105630.0,105620.0,0.7308548]
[1749302271520,0.05757258,105630.0,105620.0,0.7308548]
[1749302272406,0.0481062,105630.0,105620.0,0.7308548]
[1749302272633,0.05757258,105630.0,105620.0,0.7308548]
[1749302273115,0.06582862,105630.0,105620.0,0.7308548]
[1749302273534,0.0481062,105630.0,105620.0,0.7308548]
[1749302274387,0.03864,105630.0,105620.0,0.7308548]
[1749302274618,0.05636236,105630.0,105620.0,0.7308548]
[1749302274830,0.00704,105630.0,105620.0,0.7308548]
[1749302275040,0.00704,105630.0,105620.0,1.26891385]
[1749302275248,0.00704,105630.0,105620.0,0.81770742]
[1749302275451,0.00704,105630.0,105620.0,0.81764566]
[1749302275654,0.00704,105630.0,105620.0,0.81764635]
[1749302276058,0.00404,105630.0,105620.0,0.81764635]
[1749302276324,4e-05,105630.0,105620.0,0.7611548]
[1749302276584,0.00204,105630.0,105620.0,0.81765326]
[1749302277062,0.00404,105630.0,105620.0,0.81765326]
[1749302278981,0.00404,105630.0,105620.0,0.80235326]
[1749302279948,0.00404,105630.0,105620.0,0.78735326]
[1749302280881,0.00404,105630.0,105620.0,0.79879326]
[1749302282175,0.00404,105630.0,105620.0,0.81499326]
[1749302283640,0.03524,105630.0,105620.0,0.38959326]
[1749302283900,0.03524,105630.0,105620.0,0.4041329]
[1749302283901,0.06363966,105630.0,105620.0,0.4041329]
[1749302284172,0.0624295,105630.0,105620.0,0.75695853]
[1749302284420,0.06242972,105630.0,105620.0,0.72850753]
[1749302284655,0.0718961,105630.0,105620.0,0.72850753]
[1749302285335,0.0718961,105630.0,105620.0,0.72705906]
[1749302286083,0.06242972,105630.0,105620.0,0.72705906]
[1749302286301,0.04470629,105630.0,105620.0,0.72705906]
[1749302286535,0.05417275,105630.0,105620.0,0.72705906]
[1749302286783,0.04470629,105630.0,105620.0,0.72705906]
[1749302286999,0.06243036,105630.0,105620.0,0.72705906]
[1749302287250,0.05296407,105630.0,105620.0,0.72705906]
[1749302287465,0.06243036,105630.0,105620.0,0.72705906]
[1749302287687,0.04470629,105630.0,105620.0,0.72705906]
[1749302287920,0.06243227,105630.0,105620.0,0.72705906]
[1749302288335,0.03524,105630.0,105620.0,0.72705906]
[1749302289173,0.03524,105630.0,105620.0,0.75550906]
[1749302291984,0.0529677,105630.0,105620.0,0.75550906]
[1749302292351,0.05296769,105630.0,105620.0,0.75550906]
[1749302293039,0.0529677,105630.0,105620.0,0.75550906]
[1749302293317,0.03524,105630.0,105620.0,0.75550906]
[1749302298991,0.01934,105630.0,105620.0,0.75550906]
[1749302299480,0.03494,105630.0,105620.0,0.75550906]
[1749302304277,0.03494,105630.0,105620.0,0.7931857]
[1749302304477,0.00404,105630.0,105620.0,0.7931857]
[1749302307905,0.02178053,105630.0,105620.0,0.7931857]
[1749302308083,0.05368053,105630.0,105620.0,0.7931857]
[1749302308355,0.05368159,105630.0,105620.0,0.7931857]
[1749302308540,0.05368159,105630.0,105620.0,1.0387457]
[1749302309291,0.05368159,105630.0,105620.0,1.09524416]
[1749302309703,0.02178159,105630.0,105620.0,1.09524416]
[1749302309919,0.00404,105630.0,105620.0,1.05756752]
[1749302310117,0.00404,105630.0,105620.0,1.07276752]
[1749302314850,0.00404,105630.0,105620.0,1.62592657]
[1749302315074,0.00404,105630.0,105620.0,1.56942811]
[1749302315306,0.00404,105630.0,105620.0,2.5223199]
[1749302317350,0.00404,105630.0,105620.0,1.98446413]
[1749302318472,0.00404,105630.0,105620.0,1.44653276]
[1749302318705,0.00404,105630.0,105620.0,1.98446413]
[1749302321478,0.00404,105630.0,105620.0,1.44653276]
[1749302321713,0.00404,105630.0,105620.0,1.98446413]
[1749302324929,0.00404,105630.0,105620.0,1.44653276]
[1749302325134,0.00404,105630.0,105620.0,1.39392272]
[1749302325396,0.00404,105630.0,105620.0,0.98828272]
[1749302325636,0.03554,105630.0,105620.0,1.43152874]
[1749302326102,0.03554,105630.0,105620.0,1.39388272]
[1749302326333,0.03554,105630.0,105620.0,1.39384272]
[1749302327015,0.02014,105630.0,105620.0,1.39384272]
[1749302327979,0.02014,105630.0,105620.0,0.98828272]
[1749302328220,0.02014,105630.0,105620.0,1.39352272]
[1749302329140,0.00404,105630.0,105620.0,1.39352272]
[1749302330112,0.00404,105630.0,105620.0,0.64828272]
[1749302330345,0.05386463,105630.0,105620.0,0.99644605]
[1749302330579,0.05386491,105630.0,105620.0,0.9587917]
[1749302331077,0.05386528,105630.0,105620.0,0.9587117]
[1749302331495,0.03614,105630.0,105620.0,0.9587117]
[1749302331712,0.06333317,105630.0,105620.0,0.9587117]
[1749302331905,0.05386688,105630.0,105620.0,0.9587117]
[1749302332120,0.0538637,105630.0,105620.0,0.5539117]
[1749302332312,0.06332999,105630.0,105620.0,0.9585117]
[1749302332748,0.06333001,105630.0,105620.0,0.9585117]
[1749302333965,0.07279647,105630.0,105620.0,0.9585117]
[1749302334184,0.06332806,105630.0,105620.0,0.9585117]
[1749302334387,0.07279452,105630.0,105620.0,0.9585117]
[1749302335018,0.06332806,105630.0,105620.0,0.9585117]
[1749302335228,0.07279452,105630.0,105620.0,0.9585117]
[1749302335824,0.06332806,105630.0,105620.0,0.9585117]
[1749302336045,0.07279452,105630.0,105620.0,0.9585117]
[1749302336348,0.07279319,105630.0,105620.0,0.9585117]
[1749302336591,0.07279336,105630.0,105620.0,0.9585117]
[1749302337531,0.05507275,105630.0,105620.0,0.9585117]
[1749302337738,0.07279157,105630.0,105620.0,0.9585117]
[1749302337949,0.05385882,105630.0,105620.0,0.9585117]
[1749302338167,0.25266487,105630.0,105620.0,0.43857741]
[1749302338375,0.26213186,105630.0,105620.0,0.85605342]
[1749302339026,0.26213186,105630.0,105620.0,0.86552087]
[1749302339654,0.26213285,105630.0,105620.0,0.87498823]
[1749302339856,0.26213285,105630.0,105620.0,0.84658588]
[1749302340016,0.26213285,105630.0,105620.0,0.85605351]
[1749302340352,0.26212869,105630.0,105620.0,0.45385351]
[1749302340558,0.26212869,105630.0,105620.0,0.86516105]
[1749302341039,0.08225546,105630.0,105620.0,0.87462832]
[1749302341253,0.08225353,105630.0,105620.0,0.87462832]
[1749302341474,0.09172053,105630.0,105620.0,0.87462832]
[1749302341692,0.07278662,105630.0,105620.0,0.87462832]
[1749302341916,0.05507337,105630.0,105620.0,0.87462832]
[1749302342134,0.07278394,105630.0,105620.0,0.87462832]
[1749302344482,0.07278176,105630.0,105620.0,0.87462832]
[1749302344704,0.05507337,105630.0,105620.0,0.87462832]
[1749302344936,0.07278176,105630.0,105620.0,0.87462832]
[1749302345786,0.06453957,105630.0,105620.0,0.87462832]
[1749302346001,0.09171322,105630.0,105620.0,0.87462832]
[1749302346475,0.07400639,105630.0,105620.0,0.87462832]
[1749302346673,0.09171402,105630.0,105620.0,0.87462832]
[1749302347085,0.0822472,105630.0,105620.0,0.87462832]
[1749302347221,0.08224712,105630.0,105620.0,0.87462832]
[1749302347431,0.06453957,105630.0,105620.0,0.87462832]
[1749302347631,0.09171394,105630.0,105620.0,0.87462832]
[1749302349118,0.09171394,105630.0,105620.0,0.87338832]
[1749302349344,0.09171611,105630.0,105620.0,0.87338832]
[1749302349786,0.10118302,105630.0,105620.0,0.87338832]
[1749302350072,0.10118333,105630.0,105620.0,0.87338832]
[1749302350336,0.10118333,105630.0,105620.0,0.62430832]
[1749302350762,0.1011876,105630.0,105620.0,0.62430832]
[1749302351191,0.09172069,105630.0,105620.0,0.62430832]
[1749302351408,0.09172069,105630.0,105620.0,0.62393377]
[1749302351628,0.07400639,105630.0,105620.0,0.62393377]
[1749302351837,0.10118827,105630.0,105620.0,0.62393377]
[1749302352044,0.0834733,105630.0,105620.0,0.62393377]
[1749302352261,0.08225454,105630.0,105620.0,0.62393377]
[1749302352476,0.08241247,105630.0,105620.0,0.62393377]
[1749302352691,0.06332847,105630.0,105620.0,0.62393377]
[1749302352909,0.05386209,105630.0,105620.0,0.72033325]
[1749302353763,0.0538628,105630.0,105620.0,0.72033325]
[1749302354015,0.03614,105630.0,105620.0,0.72033325]
[1749302354217,0.0538628,105630.0,105620.0,0.72033325]
[1749302355034,0.063329,105630.0,105620.0,0.72033325]
[1749302355453,0.03614,105630.0,105620.0,0.72033325]
[1749302355827,0.05386873,105630.0,105620.0,0.72033325]
[1749302356101,0.06333502,105630.0,105620.0,0.72033325]
[1749302356323,0.03614,105630.0,105620.0,0.72033325]
[1749302356533,0.05386873,105630.0,105620.0,0.72033325]
[1749302357035,0.06333502,105630.0,105620.0,0.72033325]
[1749302357260,0.06334308,105630.0,105620.0,0.72033325]
[1749302357479,0.04560629,105630.0,105620.0,0.72033325]
[1749302357910,0.05387679,105630.0,105620.0,0.72033325]
[1749302358371,0.06334299,105630.0,105620.0,0.72033325]
[1749302358608,0.06334299,105630.0,105620.0,0.7579876]
[1749302359150,0.03787679,105630.0,105620.0,0.7579876]
[1749302359381,0.00404,105630.0,105620.0,0.7579876]
[1749302359619,0.02177679,105630.0,105620.0,0.7579876]
[1749302360113,0.05307679,105630.0,105620.0,0.7579876]
[1749302360535,0.03534,105630.0,105620.0,0.7579876]
[1749302360963,0.05308889,105630.0,105620.0,0.7579876]
[1749302361173,0.05308889,105630.0,105620.0,0.3573876]
[1749302361408,0.08148828,105630.0,105620.0,0.7565076]
[1749302361829,0.0909551,105630.0,105620.0,0.7565076]
[1749302362040,0.08148828,105630.0,105620.0,0.7565076]
[1749302362252,0.06373939,105630.0,105620.0,0.7565076]
[1749302362709,0.08148914,105630.0,105620.0,0.7565076]
[1749302363671,0.08148946,105630.0,105620.0,0.7565076]
[1749302363907,0.07202282,105630.0,105620.0,0.7565076]
[1749302364157,0.07202338,105630.0,105620.0,0.7565076]
[1749302364831,0.07202338,105630.0,105620.0,0.7560276]
[1749302365571,0.07202437,105630.0,105620.0,0.7560276]
[1749302367744,0.03534,105630.0,105620.0,0.7560276]
[1749302367947,0.00404,105630.0,105620.0,0.7560276]
[1749302368170,0.02179156,105630.0,105620.0,0.7560276]
[1749302368977,0.02179161,105630.0,105620.0,0.7560276]
[1749302369182,0.02179161,105630.0,105620.0,1.0016276]
[1749302369612,0.00404,105630.0,105620.0,1.0016276]
[1749302369817,0.02179161,105630.0,105620.0,1.0016276]
[1749302370632,0.03954408,105630.0,105620.0,1.0016276]
[1749302370840,0.02179204,105630.0,105620.0,1.0016276]
[1749302371260,0.00404,105630.0,105620.0,1.0016276]
[1749302371470,0.0135062,105630.0,105620.0,1.0016276]
[1749302371685,0.03125823,105630.0,105620.0,1.0016276]
[1749302372105,0.04072452,105630.0,105620.0,1.0016276]
[1749302372320,0.07172509,105630.0,105620.0,1.0016276]
[1749302372950,0.05397249,105630.0,105620.0,1.0016276]
[1749302373224,0.08119155,105630.0,105620.0,0.59352033]
[1749302373441,0.26106629,105630.0,105620.0,0.73743948]
[1749302373655,0.26106629,105630.0,105620.0,0.95520035]
[1749302373656,0.08119423,105630.0,105620.0,0.95520035]
[1749302373868,0.08119423,105630.0,105620.0,0.96466771]
[1749302374102,0.06344055,105630.0,105620.0,0.96466771]
[1749302374331,0.0811945,105630.0,105620.0,0.96466771]
[1749302374571,0.0811945,105630.0,105620.0,0.97413498]
[1749302375198,0.08119391,105630.0,105620.0,0.97413498]
[1749302375422,0.07919391,105630.0,105620.0,0.97413498]
[1749302375846,0.06544055,105630.0,105620.0,0.97413498]
[1749302376055,0.07372691,105630.0,105620.0,0.97413498]
[1749302376275,0.07372653,105630.0,105620.0,0.97413498]
[1749302376492,0.07172653,105630.0,105620.0,0.97413498]
[1749302376955,0.07472653,105630.0,105620.0,0.97413498]
[1749302377171,0.07472653,105630.0,105620.0,0.72853498]
[1749302377597,0.074726,105630.0,105620.0,0.33309498]
[1749302377811,0.08419282,105630.0,105620.0,0.72817498]
[1749302379078,0.07472557,105630.0,105620.0,0.72817498]
[1749302379290,0.0841923,105630.0,105620.0,0.72817498]
[1749302379510,0.06643975,105630.0,105620.0,0.72817498]
[1749302379716,0.08419229,105630.0,105620.0,0.72817498]
[1749302380354,0.07472556,105630.0,105620.0,0.72817498]
[1749302380577,0.06525815,105630.0,105620.0,0.72817498]
[1749302380861,0.04750638,105630.0,105620.0,0.72817498]
[1749302381067,0.04059113,105630.0,105620.0,0.72817498]
[1749302381281,0.02479113,105630.0,105620.0,0.72817498]
[1749302381526,0.02479107,105630.0,105620.0,0.72817498]
[1749302381963,0.02479082,105630.0,105620.0,0.72817498]
[1749302382419,0.02479076,105630.0,105620.0,0.72817498]
[1749302382655,0.00704,105630.0,105620.0,0.97377498]
[1749302383139,0.02479052,105630.0,105620.0,0.97377498]
[1749302383595,0.0247901,105630.0,105620.0,0.97377498]
[1749302384484,0.03425613,105630.0,105620.0,0.97377498]
[1749302384741,0.02478993,105630.0,105620.0,0.97377498]
[1749302384957,0.03425613,105630.0,105620.0,0.97377498]
[1749302385400,0.02478993,105630.0,105620.0,0.97377498]
[1749302385616,0.03425604,105630.0,105620.0,0.97377498]
[1749302386859,0.03425563,105630.0,105620.0,0.97377498]
[1749302387272,0.0165062,105630.0,105620.0,0.97377498]
[1749302387494,0.03425563,105630.0,105620.0,0.97377498]
[1749302387700,0.02478943,105630.0,105620.0,0.97377498]
[1749302387907,0.0165062,105630.0,105620.0,0.97377498]
[1749302388117,0.02478943,105630.0,105620.0,0.97377498]
[1749302388332,0.03425563,105630.0,105620.0,0.97377498]
[1749302389204,0.0342557,105630.0,105620.0,0.97377498]
[1749302389634,0.0165062,105630.0,105620.0,0.97377498]
[1749302389857,0.03425526,105630.0,105620.0,0.97377498]
[1749302390277,0.02478906,105630.0,105620.0,0.97377498]
[1749302390491,0.03425535,105630.0,105620.0,0.97377498]
[1749302390708,0.03425535,105630.0,105620.0,1.01146679]
[1749302390912,0.01650629,105630.0,105620.0,1.01146679]
[1749302391122,0.03425547,105630.0,105620.0,1.01146679]
[1749302392470,0.01650629,105630.0,105620.0,1.01146679]
[1749302392679,0.02478871,105630.0,105620.0,1.01146679]
[1749302392895,0.03425508,105630.0,105620.0,1.01146679]
[1749302393410,0.02478888,105630.0,105620.0,1.01146679]
[1749302393634,0.03425508,105630.0,105620.0,1.01146679]
[1749302394436,0.03425458,105630.0,105620.0,1.01146679]
[1749302395305,0.03425402,105630.0,105620.0,1.01146679]
[1749302395753,0.0165062,105630.0,105620.0,1.01146679]
[1749302396011,0.03425402,105630.0,105620.0,1.01146679]
[1749302396474,0.0165062,105630.0,105620.0,1.01146679]
[1749302396892,0.02478782,105630.0,105620.0,1.04416679]
[1749302397096,0.02478776,105630.0,105620.0,1.04416679]
[1749302398333,0.02478726,105630.0,105620.0,1.04416679]
[1749302398541,0.00704,105630.0,105620.0,1.02786679]
[1749302398752,0.02478726,105630.0,105620.0,1.02786679]
[1749302398952,0.00704,105630.0,105620.0,1.02786679]
[1749302399481,0.02478726,105630.0,105620.0,1.02786679]
[1749302399955,0.02478726,105630.0,105620.0,1.01146679]
[1749302400420,0.00704,105630.0,105620.0,1.01146679]
[1749302400632,0.0247866,105630.0,105620.0,1.01146679]
[1749302401064,0.00704,105630.0,105620.0,1.01146679]
[1749302401311,0.0247866,105630.0,105620.0,1.01146679]
[1749302401949,0.00704,105630.0,105620.0,1.01146679]
[1749302402373,0.02478677,105630.0,105620.0,1.01146679]
[1749302402581,0.00704,105630.0,105620.0,1.01146679]
[1749302402794,0.02478677,105630.0,105620.0,1.02656679]
[1749302403293,0.02478607,105630.0,105620.0,1.02656679]
[1749302403566,0.02478624,105630.0,105620.0,1.02656679]
[1749302403783,0.02478624,105630.0,105620.0,1.01146679]
[1749302404342,0.00704,105630.0,105620.0,1.01146679]
[1749302404620,0.02478624,105630.0,105620.0,1.01146679]
[1749302405541,0.02478757,105630.0,105620.0,1.01146679]
[1749302405772,0.00704,105630.0,105620.0,1.01146679]
[1749302406235,0.02478757,105630.0,105620.0,1.01146679]
[1749302406478,0.00704,105630.0,105620.0,1.01146679]
[1749302406682,0.02478849,105630.0,105620.0,1.01146679]
[1749302407907,0.00704,105630.0,105620.0,1.01146679]
[1749302408127,0.00704,105630.0,105620.0,1.09942045]
[1749302408349,0.00704,105630.0,105620.0,1.50304752]
[1749302408798,0.00704,105630.0,105620.0,1.46535571]
[1749302410000,0.00704,105630.0,105620.0,1.43385571]
[1749302410315,0.00704,105630.0,105620.0,1.45015571]
[1749302410797,0.00704,105630.0,105620.0,1.46535571]
[1749302411733,0.54705521,105640.0,105630.0,0.21774007]
[1749302411977,0.54705521,105640.0,105630.0,0.44550599]
[1749302412474,0.54705117,105640.0,105630.0,0.44550599]
[1749302412907,0.53430897,105640.0,105630.0,0.44650599]
[1749302413128,0.53830897,105640.0,105630.0,0.44650599]
[1749302413344,0.55605049,105640.0,105630.0,0.44650599]
[1749302414238,0.53830897,105640.0,105630.0,0.44650599]
[1749302414448,0.55605049,105640.0,105630.0,0.44650599]
[1749302414881,0.55604974,105640.0,105630.0,0.44650599]
[1749302415096,0.54064974,105640.0,105630.0,0.44650599]
[1749302415344,0.53501504,105640.0,105630.0,0.44650599]
[1749302415555,0.53501296,105640.0,105630.0,0.44650599]
[1749302415991,0.54857427,105640.0,105630.0,0.44650599]
[1749302416413,0.56631296,105640.0,105630.0,0.44650599]
[1749302416629,0.54857427,105640.0,105630.0,0.44650599]
[1749302416835,0.56631232,105640.0,105630.0,0.44650599]
[1749302417239,0.56631232,105640.0,105630.0,0.44370599]
[1749302417664,0.58524355,105640.0,105630.0,0.44370599]
[1749302417870,0.58524259,105640.0,105630.0,0.44370599]
[1749302418080,0.5675055,105640.0,105630.0,0.40601955]
[1749302418325,0.55803975,105640.0,105630.0,0.40601955]
[1749302418593,0.57577693,105640.0,105630.0,0.40601955]
[1749302418830,0.5852425,105640.0,105630.0,0.40601955]
[1749302419613,0.57577693,105640.0,105630.0,0.40601955]
[1749302420307,0.56631145,105640.0,105630.0,0.40601955]
[1749302420724,0.54857427,105640.0,105630.0,0.40601955]
[1749302420932,0.5663123,105640.0,105630.0,0.40601955]
[1749302421797,0.55803966,105640.0,105630.0,0.40601955]
[1749302422009,0.58524326,105640.0,105630.0,0.40601955]
[1749302422248,0.58524317,105640.0,105630.0,0.40601955]
[1749302423291,0.58524471,105640.0,105630.0,0.40601955]
[1749302423495,0.56750514,105640.0,105630.0,0.40601955]
[1749302423713,0.58524471,105640.0,105630.0,0.40601955]
[1749302423928,0.59471037,105640.0,105630.0,0.40601955]
[1749302424147,0.58524471,105640.0,105630.0,0.40601955]